fUSD/lending_fUSD_20240530
["ID","MTS","AMOUNT","RATE_DAILY","PERIOD"]
[328195909,1717042238102,-200.0,0.0003,2]
[328195910,1717042238111,-150.0,0.0003006,2]
[328195911,1717042238120,-150.0,0.00030086,2]
[328195912,1717042238129,-1500.0,0.000301,5]
[328195913,1717042238139,-150.0,0.00030114,2]
[328195914,1717042238148,-200.0,0.00030137,2]
[328195915,1717042238158,-1440.77825663,0.00030161,2]
[328195916,1717042238167,-154.60553554,0.00030208,7]
[328195917,1717042238176,-153.4610551,0.00030256,7]
[328195918,1717042238186,-150.0,0.00030269,2]
[328195919,1717042238195,-153.4610551,0.00030359,7]
[328195920,1717042238205,-256.46,0.00030403,2]
[328195921,1717042238214,-150.0,0.00030409,2]
[328195922,1717042238223,-926.60206097,0.00030476,2]
[328195923,1717042238232,-151.0,0.00030481,2]
[328195924,1717042238241,-1558.19439594,0.00030505,10]
[328195925,1717042238250,-800.6733327,0.00030505,10]
[328195926,1717042238259,-416.39,0.00030575,2]
[328195927,1717042238268,-1813.67,0.00030575,2]
[328195928,1717042238278,-416.39,0.00030575,2]
[328195929,1717042238288,-416.39,0.00030575,2]
[328195930,1717042238297,-413.99,0.00030575,2]
[328195931,1717042238306,-153.4610551,0.00030583,7]
[328195932,1717042238315,-1500.0,0.000306,5]
[328195933,1717042238324,-187.7553,0.00030605,2]
[328195934,1717042238333,-12045.0532,0.00030605,2]
[328195935,1717042238343,-284.8769,0.00030605,2]
[328195936,1717042238352,-6662.3053,0.00030605,2]
[328195937,1717042238361,-482.4678,0.00030605,2]
[328195938,1717042238370,-10095.305,0.00030605,7]
[328195939,1717042238379,-155.07773877,0.00030644,7]
[328195940,1717042238389,-150.0,0.0003065,2]
[328195941,1717042238398,-152.0,0.00030677,3]
[328195942,1717042238407,-32.42418563,0.00030705,2]
[328195943,1717042238416,-599.39214774,0.00030705,2]
[328195944,1717042238425,-47831.20785928,0.00030705,2]
[328195945,1717042238435,-346.0004658,0.00030705,4]
[328195946,1717042238443,-327.67529192,0.00030705,2]
[328195947,1717042238453,-1614.01253124,0.00030705,4]
[328195948,1717042238462,-155.0,0.00030705,2]
[328195949,1717042238471,-154.95314291,0.00030714,7]
[328195950,1717042238480,-150.0,0.00030753,2]
[328195951,1717042238490,-150.0,0.00030756,2]
[328195952,1717042238499,-150.0,0.00030774,2]
[328195953,1717042238508,-8031.69568243,0.00030789,2]
[328195954,1717042238518,-150.0,0.00030798,2]
[328195955,1717042238527,-1558.19439588,0.00030804,10]
[328195956,1717042238537,-800.6733327,0.00030804,10]
[328195957,1717042238546,-150.0,0.00030816,2]
[328195958,1717042238555,-180.0,0.00030819,2]
[328195959,1717042238564,-153.80201033,0.00030836,7]
[328195960,1717042238670,-500.0,0.00030849,2]
[328195961,1717042238683,-200.0,0.00030849,2]
[328195962,1717042238693,-420.74,0.00030849,2]
[328195963,1717042238702,-300.0,0.00030849,2]
[328195964,1717042238711,-525.06,0.00030849,2]
[328195965,1717042238722,-150.0,0.00030849,2]
[328195966,1717042238731,-352.06,0.00030849,2]
[328195967,1717042238740,-525.06,0.00030849,2]
[328195968,1717042238751,-150.0,0.00030849,2]
[328195969,1717042238761,-525.06,0.00030849,2]
[328195970,1717042238770,-525.06,0.00030849,2]
[328195971,1717042238780,-150.0,0.00030849,2]
[328195972,1717042238790,-377.94,0.00030849,2]
[328195973,1717042238799,-150.0,0.00030879,2]
[328195974,1717042238808,-179.64019901,0.00030899,2]
[328195975,1717042238817,-1000.0,0.00030946,2]
[328195976,1717042238826,-154.95314291,0.00030949,7]
[328195977,1717042238836,-153.4610551,0.00030978,7]
[328195978,1717042238845,-150.0,0.00030979,2]
[328195979,1717042238854,-150.0,0.0003098,2]
[328195980,1717042238863,-325.21871759,0.00030983,2]
[328195981,1717042238873,-1271.9176,0.00030997,2]
[328195982,1717042238883,-4150.2053,0.00030998,2]
[328195983,1717042238892,-1126.0573,0.00030999,2]
[328195984,1717042238901,-1025.966,0.00030999,2]
[328195985,1717042238910,-2765.3446,0.00030999,2]
[328195986,1717042238920,-7500.0,0.00030999,2]
[328195987,1717042238929,-330.90839776,0.00030999,2]
[328195988,1717042238938,-168.37020438,0.00031,2]
[328195989,1717042238947,-13528.30368428,0.00031,2]
[328195990,1717042238957,-2000.0,0.00031,4]
[328195991,1717042238966,-304.90382146,0.00031,2]
[328195992,1717042238975,-174.45314002,0.00031,2]
[328195993,1717042238983,-344.0,0.00031,3]
[328195994,1717042238992,-179.640199,0.00031,2]
[328195995,1717042239001,-150.0,0.00031,6]
[328195996,1717042239011,-427.65864176,0.00031,2]
[328195997,1717042239020,-151.0,0.00031032,2]
[328195998,1717042239029,-250.49088,0.00031032,2]
[328195999,1717042239038,-158.58608942,0.00031053,7]
[328196000,1717042239047,-60119.3662146,0.00031083,2]
[328196001,1717042239056,-16243.760231,0.00031083,2]
[328196002,1717042239066,-3257.4399818,0.00031083,2]
[328196003,1717042239078,-220.91454803,0.00031089,2]
[328196004,1717042239087,-152.09,0.00031089,2]
[328196005,1717042239097,-153.0,0.0003109,5]
[328196006,1717042239107,-152.09,0.0003109,2]
[328196007,1717042239116,-152.09,0.0003109,2]
[328196008,1717042239125,-152.09,0.0003109,2]
[328196009,1717042239135,-152.09,0.0003109,2]
[328196010,1717042239144,-152.09,0.0003109,2]
[328196011,1717042239153,-152.09,0.0003109,2]
[328196012,1717042239164,-152.09,0.0003109,2]
[328196013,1717042239173,-666.2124936,0.00031091,2]
[328196014,1717042239183,-253.7671982,0.00031091,2]
[328196015,1717042239192,-12787.5705847,0.00031091,2]
[328196016,1717042239202,-475.7289704,0.00031095,2]
[328196017,1717042239211,-2398.19288921,0.00031096,2]
[328196018,1717042239221,-268.70326133,0.00031097,2]
[328196019,1717042239230,-3000.0,0.00031097,2]
[328196020,1717042239240,-19185.54311368,0.00031097,2]
[328196021,1717042239250,-325.92527891,0.00031098,4]
[328196022,1717042239260,-170.5095935,0.00031098,4]
[328196024,1717042239270,-158.41417273,0.00031098,4]
[328196025,1717042239279,-1271.52858864,0.00031098,120]
[328196026,1717042239289,-199.96047201,0.00031098,4]
[328196027,1717042239299,-1328.86426313,0.00031098,5]
[328196028,1717042239309,-155.20268646,0.00031098,4]
[328196029,1717042239318,-155.0,0.00031098,4]
[328196030,1717042239328,-2345.12481961,0.00031098,4]
[328196031,1717042239337,-184.97824817,0.00031098,4]
[328196032,1717042239347,-1358.3857846,0.00031098,4]
[328196033,1717042239357,-7863.85734097,0.00031098,4]
[328196034,1717042239366,-24018.91079518,0.00031099,4]
[328196035,1717042239376,-500000.0,0.00031099,4]
[328196036,1717042239387,-998.8897,0.00031099,2]
[328196037,1717042239396,-151.0,0.00031099,7]
[328196038,1717042239406,-4290.30455092,0.000311,11]
[328196039,1717042239415,-487086.01145981,0.000311,5]
[328196042,1717042240124,-150.0,0.00029449,2]
[328196043,1717042240136,-150.0,0.00029607,2]
[328196044,1717042240145,-150.0,0.0002974,2]
[328196045,1717042240154,-150.0,0.00030248,2]
[328196046,1717042240164,-150.0,0.00030297,2]
[328196047,1717042240173,-150.0,0.00030364,2]
[328196048,1717042240183,-150.0,0.00030913,2]
[328196049,1717042240193,-150.0,0.00030921,2]
[328196050,1717042240202,-150.0,0.00030981,2]
[328196051,1717042240212,-218.29552831,0.000311,5]
[328196052,1717042240224,-1555.73494035,0.000311,5]
[328196053,1717042240253,-4725.83660613,0.000311,5]
[328196054,1717042240587,-150.0,0.00029841,2]
[328196055,1717042240596,-150.0,0.00029896,2]
[328196056,1717042240704,-35.62675009,0.00029916,2]
[328196059,1717042240995,-114.37324991,0.00029916,2]
[328196060,1717042241005,-150.0,0.00029971,2]
[328196061,1717042241014,-150.0,0.00030176,2]
[328196062,1717042241022,-343.87175009,0.000311,5]
[328196063,1717042241083,-150.0,0.0003057,2]
[328196064,1717042241093,-27353.33808669,0.000311,5]
[328196074,1717042242799,-482.9,0.00027535,2]
[328196075,1717042242809,-1146.194,0.00028685,2]
[328196076,1717042242818,-150.0,0.00029647,2]
[328196077,1717042242827,-482.9,0.00029799,2]
[328196078,1717042242836,-150.0,0.00030478,2]
[328196079,1717042242847,-150.0,0.00031016,2]
[328196080,1717042242856,-744.006,0.000311,5]
[328196081,1717042242930,-662.32851862,0.000311,5]
[328196096,1717042245993,-612.0,0.000275,3]
[328196097,1717042246002,-5693.54335746,0.000311,5]
[328196098,1717042246041,-3396.65,0.000311,5]
[328196099,1717042246052,-380.79946699,0.000311,5]
[328196100,1717042246063,-4909.52585273,0.000311,5]
[328196139,1717043431702,-155.0,0.00011999,2]
[328196140,1717043431712,-473.29026574,0.00012,2]
[328196141,1717043431722,-29.95973426,0.00013973,2]
[328196142,1717043431734,-124.85026574,0.00013973,2]
[328196143,1717043431743,-156.73,0.00013973,2]
[328196144,1717043431752,-476.14,0.00025816,2]
[328196145,1717043431762,-2.83912921,0.00026274,2]
[328196146,1717043431774,-151.97087079,0.00026274,2]
[328196147,1717043431783,-2898.12636205,0.00027,2]
[328196148,1717043431795,-385.01912969,0.00027,2]
[328196149,1717043431825,-737.50508462,0.00027,2]
[328196150,1717043431834,-805.91709047,0.0002739,2]
[328196151,1717043431844,-800.0,0.00027479,2]
[328196152,1717043431853,-250.0,0.0002758,2]
[328196153,1717043431863,-250.0,0.00027642,2]
[328196154,1717043431872,-211.17,0.00027831,2]
[328196155,1717043431881,-250.0,0.00027903,2]
[328196156,1717043431891,-158.08,0.00027992,2]
[328196157,1717043431899,-609.28,0.00028032,2]
[328196158,1717043431910,-249.19045939,0.0002808,2]
[328196159,1717043431922,-226.94954061,0.0002808,2]
[328196160,1717043431931,-165.08,0.00028292,2]
[328196161,1717043431940,-200.0,0.00028292,2]
[328196162,1717043431950,-33.36875939,0.00028685,2]
[328196163,1717043431981,-241.36684061,0.00028685,2]
[328196164,1717043431991,-1246.55551674,0.00028695,2]
[328196165,1717043432000,-19579.71241053,0.00028785,2]
[328196166,1717043432012,-614.7279758,0.00028785,2]
[328196167,1717043432023,-428.101543,0.00028785,2]
[328196168,1717043432034,-41551.5869459,0.00028785,2]
[328196169,1717043432043,-357.06,0.00028785,3]
[328196170,1717043432053,-1224.0,0.00028795,2]
[328196172,1717043432062,-614.0,0.00028795,2]
[328196174,1717043432071,-440.0,0.00028795,2]
[328196176,1717043432080,-1265.0,0.00028795,2]
[328196178,1717043432089,-1646.0,0.00028795,2]
[328196180,1717043432099,-808.0,0.00028795,2]
[328196182,1717043432108,-445.0,0.00028795,2]
[328196184,1717043432117,-2400.0,0.00028795,2]
[328196185,1717043432126,-2400.0,0.00028795,2]
[328196187,1717043432135,-1305.0,0.00028795,2]
[328196189,1717043432144,-216.0,0.00028795,2]
[328196191,1717043432153,-1652.0,0.00028795,2]
[328196193,1717043432163,-3167.0,0.00028795,2]
[328196196,1717043432172,-357.0,0.00028795,2]
[328196198,1717043432181,-357.0,0.00028795,2]
[328196200,1717043432190,-289.0,0.00028795,2]
[328196201,1717043432200,-1468.0,0.00028795,2]
[328196203,1717043432209,-399.889328,0.000291,2]
[328196205,1717043432218,-1246.5555167,0.00029196,2]
[328196208,1717043432232,-1246.5555167,0.00029696,2]
[328196210,1717043432242,-757.62772276,0.00029784,2]
[328196212,1717043432251,-500.0,0.00029884,2]
[328196214,1717043432260,-500.0,0.00029884,2]
[328196216,1717043432270,-500.0,0.00029884,2]
[328196218,1717043432279,-500.0,0.00029884,2]
[328196220,1717043432287,-500.0,0.00029884,2]
[328196221,1717043432296,-500.0,0.00029884,2]
[328196224,1717043432308,-500.0,0.00029884,2]
[328196225,1717043432317,-500.0,0.00029884,2]
[328196227,1717043432326,-500.0,0.00029884,2]
[328196229,1717043432335,-500.0,0.00029884,2]
[328196232,1717043432345,-500.0,0.00029884,2]
[328196234,1717043432354,-500.0,0.00029884,2]
[328196236,1717043432363,-500.0,0.00029884,2]
[328196238,1717043432373,-500.0,0.00029884,2]
[328196240,1717043432382,-500.0,0.00029884,2]
[328196242,1717043432391,-500.0,0.00029884,2]
[328196244,1717043432402,-500.0,0.00029884,2]
[328196246,1717043432411,-500.0,0.00029884,2]
[328196248,1717043432421,-500.0,0.00029884,2]
[328196250,1717043432430,-500.0,0.00029884,2]
[328196252,1717043432439,-500.0,0.00029884,2]
[328196254,1717043432450,-500.0,0.00029884,2]
[328196256,1717043432459,-500.0,0.00029884,2]
[328196258,1717043432469,-500.0,0.00029884,2]
[328196260,1717043432478,-500.0,0.00029884,2]
[328196262,1717043432487,-500.0,0.00029884,2]
[328196264,1717043432496,-500.0,0.00029884,2]
[328196266,1717043432506,-500.0,0.00029884,2]
[328196268,1717043432517,-500.0,0.00029884,2]
[328196270,1717043432526,-500.0,0.00029884,2]
[328196272,1717043432536,-500.0,0.00029884,2]
[328196273,1717043432546,-500.0,0.00029884,2]
[328196274,1717043432557,-500.0,0.00029884,2]
[328196275,1717043432567,-500.0,0.00029884,2]
[328196276,1717043432577,-500.0,0.00029884,2]
[328196277,1717043432586,-500.0,0.00029884,2]
[328196278,1717043432596,-500.0,0.00029884,2]
[328196279,1717043432605,-500.0,0.00029884,2]
[328196280,1717043432614,-500.0,0.00029884,2]
[328196281,1717043432623,-500.0,0.00029884,2]
[328196282,1717043432632,-500.0,0.00029884,2]
[328196283,1717043432642,-500.0,0.00029884,2]
[328196284,1717043432651,-500.0,0.00029884,2]
[328196285,1717043432660,-500.0,0.00029884,2]
[328196286,1717043432670,-500.0,0.00029884,2]
[328196287,1717043432680,-500.0,0.00029884,2]
[328196288,1717043432689,-500.0,0.00029884,2]
[328196289,1717043432699,-500.0,0.00029884,2]
[328196290,1717043432708,-500.0,0.00029884,2]
[328196291,1717043432717,-500.0,0.00029884,2]
[328196292,1717043432727,-500.0,0.00029884,2]
[328196293,1717043432738,-500.0,0.00029884,2]
[328196294,1717043432748,-500.0,0.00029884,2]
[328196295,1717043432758,-500.0,0.00029884,2]
[328196296,1717043432767,-500.0,0.00029884,2]
[328196297,1717043432776,-500.0,0.00029884,2]
[328196298,1717043432785,-500.0,0.00029884,2]
[328196299,1717043432795,-500.0,0.00029884,2]
[328196300,1717043432806,-500.0,0.00029884,2]
[328196301,1717043432815,-500.0,0.00029884,2]
[328196302,1717043432827,-500.0,0.00029884,2]
[328196303,1717043432837,-500.0,0.00029884,2]
[328196304,1717043432847,-500.0,0.00029884,2]
[328196305,1717043432856,-500.0,0.00029884,2]
[328196306,1717043432866,-500.0,0.00029884,2]
[328196307,1717043432875,-500.0,0.00029884,2]
[328196308,1717043432884,-500.0,0.00029884,2]
[328196309,1717043432894,-500.0,0.00029884,2]
[328196310,1717043432903,-500.0,0.00029884,2]
[328196311,1717043432913,-500.0,0.00029884,2]
[328196312,1717043432923,-500.0,0.00029884,2]
[328196313,1717043432932,-500.0,0.00029884,2]
[328196314,1717043432942,-500.0,0.00029884,2]
[328196315,1717043432952,-500.0,0.00029884,2]
[328196316,1717043432962,-500.0,0.00029884,2]
[328196317,1717043432971,-500.0,0.00029884,2]
[328196318,1717043432979,-500.0,0.00029884,2]
[328196319,1717043432989,-500.0,0.00029884,2]
[328196320,1717043432999,-500.0,0.00029884,2]
[328196321,1717043433008,-500.0,0.00029884,2]
[328196322,1717043433017,-500.0,0.00029884,2]
[328196323,1717043433026,-500.0,0.00029884,2]
[328196324,1717043433037,-500.0,0.00029884,2]
[328196325,1717043433047,-500.0,0.00029884,2]
[328196326,1717043433057,-500.0,0.00029884,2]
[328196327,1717043433066,-500.0,0.00029884,2]
[328196328,1717043433075,-500.0,0.00029884,2]
[328196329,1717043433084,-500.0,0.00029884,2]
[328196330,1717043433093,-500.0,0.00029884,2]
[328196331,1717043433103,-500.0,0.00029884,2]
[328196332,1717043433112,-500.0,0.00029884,2]
[328196333,1717043433121,-500.0,0.00029884,2]
[328196334,1717043433130,-500.0,0.00029884,2]
[328196335,1717043433139,-500.0,0.00029884,2]
[328196336,1717043433148,-500.0,0.00029884,2]
[328196337,1717043433157,-500.0,0.00029884,2]
[328196338,1717043433166,-500.0,0.00029884,2]
[328196339,1717043433175,-500.0,0.00029884,2]
[328196340,1717043433185,-500.0,0.00029884,2]
[328196341,1717043433194,-500.0,0.00029884,2]
[328196342,1717043433203,-500.0,0.00029884,2]
[328196343,1717043433211,-500.0,0.00029884,2]
[328196344,1717043433221,-500.0,0.00029884,2]
[328196345,1717043433234,-500.0,0.00029884,2]
[328196346,1717043433243,-500.0,0.00029884,2]
[328196347,1717043433252,-500.0,0.00029884,2]
[328196348,1717043433261,-500.0,0.00029884,2]
[328196349,1717043433270,-500.0,0.00029884,2]
[328196350,1717043433376,-500.0,0.00029884,2]
[328196351,1717043433386,-500.0,0.00029884,2]
[328196352,1717043433396,-500.0,0.00029884,2]
[328196353,1717043433404,-500.0,0.00029884,2]
[328196354,1717043433416,-500.0,0.00029884,2]
[328196355,1717043433426,-500.0,0.00029884,2]
[328196356,1717043433435,-500.0,0.00029884,2]
[328196357,1717043433445,-500.0,0.00029884,2]
[328196358,1717043433455,-500.0,0.00029884,2]
[328196359,1717043433464,-500.0,0.00029884,2]
[328196360,1717043433473,-500.0,0.00029884,2]
[328196361,1717043433482,-500.0,0.00029884,2]
[328196362,1717043433493,-500.0,0.00029884,2]
[328196363,1717043433502,-500.0,0.00029884,2]
[328196364,1717043433511,-500.0,0.00029884,2]
[328196365,1717043433522,-500.0,0.00029884,2]
[328196366,1717043433533,-500.0,0.00029884,2]
[328196367,1717043433542,-500.0,0.00029884,2]
[328196368,1717043433552,-500.0,0.00029884,2]
[328196369,1717043433562,-500.0,0.00029884,2]
[328196370,1717043433573,-500.0,0.00029884,2]
[328196371,1717043433582,-500.0,0.00029884,2]
[328196372,1717043433592,-500.0,0.00029884,2]
[328196373,1717043433601,-500.0,0.00029884,2]
[328196374,1717043433610,-500.0,0.00029884,2]
[328196375,1717043433619,-500.0,0.00029884,2]
[328196376,1717043433628,-500.0,0.00029884,2]
[328196377,1717043433637,-500.0,0.00029884,2]
[328196378,1717043433646,-500.0,0.00029884,2]
[328196379,1717043433655,-500.0,0.00029884,2]
[328196380,1717043433663,-500.0,0.00029884,2]
[328196381,1717043433672,-500.0,0.00029884,2]
[328196382,1717043433681,-500.0,0.00029884,2]
[328196383,1717043433690,-500.0,0.00029884,2]
[328196384,1717043433700,-500.0,0.00029884,2]
[328196385,1717043433710,-500.0,0.00029884,2]
[328196386,1717043433719,-500.0,0.00029884,2]
[328196387,1717043433727,-500.0,0.00029884,2]
[328196388,1717043433737,-500.0,0.00029884,2]
[328196389,1717043433748,-500.0,0.00029884,2]
[328196390,1717043433758,-500.0,0.00029884,2]
[328196391,1717043433767,-500.0,0.00029884,2]
[328196392,1717043433776,-500.0,0.00029884,2]
[328196393,1717043433785,-500.0,0.00029884,2]
[328196394,1717043433795,-500.0,0.00029884,2]
[328196395,1717043433805,-500.0,0.00029884,2]
[328196396,1717043433815,-500.0,0.00029884,2]
[328196397,1717043433824,-500.0,0.00029884,2]
[328196398,1717043433834,-500.0,0.00029884,2]
[328196399,1717043433843,-500.0,0.00029884,2]
[328196400,1717043433852,-500.0,0.00029884,2]
[328196401,1717043433862,-500.0,0.00029884,2]
[328196402,1717043433872,-500.0,0.00029884,2]
[328196403,1717043433882,-500.0,0.00029884,2]
[328196404,1717043433891,-500.0,0.00029884,2]
[328196405,1717043433901,-500.0,0.00029884,2]
[328196406,1717043433912,-500.0,0.00029884,2]
[328196407,1717043433922,-500.0,0.00029884,2]
[328196408,1717043433938,-157.87841861,0.00029884,2]
[328196409,1717043433947,-5698.34718129,0.0003,2]
[328196410,1717043433957,-9800.31464996,0.0003,2]
[328196411,1717043433966,-5000.0,0.0003,4]
[328196412,1717043433975,-207.0,0.0003,2]
[328196413,1717043433985,-200.0,0.0003,2]
[328196414,1717043433994,-200.0,0.00030137,2]
[328196415,1717043434003,-166.65634609,0.00030147,7]
[328196416,1717043434013,-757.62772267,0.00030164,10]
[328196417,1717043434024,-1246.5555167,0.00030197,10]
[328196418,1717043434033,-180.0,0.00030288,2]
[328196419,1717043434042,-609.0,0.000303,30]
[328196420,1717043434051,-476.14,0.00030343,2]
[328196421,1717043434061,-150.0,0.00030385,2]
[328196422,1717043434070,-152.03902342,0.00030445,2]
[328196423,1717043434081,-970.18778081,0.00030466,2]
[328196424,1717043434090,-757.62772267,0.00030543,10]
[328196425,1717043434099,-211.17,0.0003057,2]
[328196426,1717043434110,-150.0,0.000306,2]
[328196427,1717043434120,-1246.5555167,0.00030697,10]
[328196428,1717043434131,-153.4610551,0.00030825,7]
[328196429,1717043434140,-500.0,0.00030849,2]
[328196430,1717043434150,-200.0,0.00030849,2]
[328196431,1717043434159,-151.43,0.00030849,2]
[328196432,1717043434170,-168.66820433,0.00030881,7]
[328196433,1717043434180,-354.0,0.000309,2]
[328196434,1717043434189,-945.3,0.000309,2]
[328196435,1717043434199,-354.0,0.000309,2]
[328196436,1717043434208,-400.41226984,0.000309,2]
[328196437,1717043434218,-1000.0,0.000309,2]
[328196438,1717043434232,-224.0,0.000309,2]
[328196439,1717043434241,-154.95314291,0.00030906,7]
[328196440,1717043434249,-800.0,0.00030914,2]
[328196441,1717043434258,-757.62772267,0.00030923,10]
[328196442,1717043434268,-150.0,0.00030995,2]
[328196443,1717043434278,-168.37020436,0.00031,2]
[328196444,1717043434287,-198.83096374,0.00031,2]
[328196445,1717043434298,-12400.94504396,0.00031,2]
[328196446,1717043434307,-261.34613268,0.00031,2]
[328196447,1717043434320,-7500.0,0.00031,2]
[328196448,1717043434331,-150.0,0.00031,6]
[328196449,1717043434340,-5036.50326916,0.00031,2]
[328196450,1717043434348,-285.10576116,0.00031,2]
[328196451,1717043434357,-150.0,0.00031017,2]
[328196452,1717043434366,-68.44079363,0.00031026,2]
[328196453,1717043434409,-81.55920637,0.00031026,2]
[328196454,1717043434419,-159.70945543,0.00031082,7]
[328196455,1717043434428,-1111.3895926,0.00031086,2]
[328196456,1717043434438,-53050.27901016,0.00031086,2]
[328196457,1717043434451,-20199.14296114,0.00031086,2]
[328196458,1717043434462,-2651.082824,0.00031086,2]
[328196459,1717043434472,-1480.46708145,0.00031088,4]
[328196460,1717043434482,-8946.9531501,0.00031088,2]
[328196461,1717043434491,-3000.0477549,0.00031088,2]
[328196462,1717043434501,-155.0,0.00031089,8]
[328196463,1717043434510,-1897.83949895,0.00031089,4]
[328196464,1717043434521,-152.09,0.0003109,2]
[328196465,1717043434530,-152.09,0.0003109,2]
[328196466,1717043434539,-152.09,0.0003109,2]
[328196467,1717043434548,-6867.80118864,0.00031097,2]
[328196468,1717043434557,-576.84660747,0.00031098,2]
[328196469,1717043434566,-5000.0,0.00031099,2]
[328196470,1717043434575,-406.61896149,0.00031099,4]
[328196471,1717043434584,-155.0,0.00031099,4]
[328196472,1717043434593,-1000.0,0.00031099,2]
[328196473,1717043434602,-3000.0,0.00031099,2]
[328196474,1717043434611,-217.40512422,0.00031099,2]
[328196475,1717043434620,-420.12477982,0.00031099,2]
[328196476,1717043434631,-500.0,0.00031099,2]
[328196477,1717043434643,-500.0,0.00031099,2]
[328196478,1717043434652,-151.77568994,0.00031099,2]
[328196479,1717043434662,-500.0,0.00031099,2]
[328196480,1717043434671,-500.0,0.00031099,2]
[328196481,1717043434682,-500.0,0.00031099,2]
[328196482,1717043434692,-500.0,0.00031099,2]
[328196483,1717043434702,-500.0,0.00031099,2]
[328196484,1717043434711,-10.44660849,0.00031099,2]
[328196485,1717043434723,-459.488712,0.00031099,2]
[328196486,1717043434752,-30.06467951,0.00031099,2]
[328196487,1717043434762,-430.36655568,0.00031099,2]
[328196488,1717043434774,-69.63344432,0.00031099,2]
[328196489,1717043434783,-399.89660634,0.00031099,2]
[328196490,1717043434796,-100.10339366,0.00031099,2]
[328196491,1717043434805,-205.172317,0.00031099,2]
[328196492,1717043434814,-500.0,0.00031099,2]
[328196493,1717043434824,-175.42803474,0.00031099,2]
[328196494,1717043434833,-500.0,0.00031099,2]
[328196495,1717043434842,-2145.15227546,0.000311,11]
[328196496,1717043434851,-23686.39630315,0.000311,5]
[328196497,1717043434862,-6271.32552108,0.000311,5]
[328196500,1717043437677,-1025.93346629,0.00028795,2]
[328196501,1717043437689,-2084.0327375,0.00028795,2]
[328196502,1717043437701,-2007.98320904,0.00028795,2]
[328196503,1717043437713,-25.05058717,0.00028795,2]
[328196504,1717043437723,-229.35,0.00030106,2]
[328196505,1717043437733,-2332.30374178,0.000311,5]
[328196506,1717043437800,-2061.50123773,0.000311,5]
[328196507,1717043437813,-1006.28438163,0.000311,5]
[328196508,1717043437825,-552.44249756,0.000311,5]
[328196509,1717043437983,-785.60005,0.000311,5]
[328196538,1717043440401,-870.60999909,0.00028795,2]
[328196539,1717043440413,-1068.45266261,0.00028795,2]
[328196540,1717043440462,-443.43736833,0.00028795,2]
[328196541,1717043441285,-7541.51861617,0.00028795,2]
[328196590,1717043443162,-498.86436929,0.00028795,2]
[328196591,1717043443275,-27540.11698451,0.00028795,2]
[328196592,1717043443284,-5769.0,0.00028795,2]
[328196593,1717043443294,-288.42330374,0.00031098,2]
[328196594,1717043443305,-269856.12901164,0.000311,5]
[328196634,1717044631989,-536.7350543,0.00013972,2]
[328196635,1717044631999,-155.41,0.00013973,2]
[328196636,1717044632009,-156.84,0.00013973,2]
[328196637,1717044632018,-1762.89096723,0.00017225,2]
[328196638,1717044632030,-1396.04333399,0.00017225,2]
[328196639,1717044632039,-155.41,0.00021209,2]
[328196640,1717044632048,-739.84666616,0.00025,2]
[328196641,1717044632061,-534.22214473,0.00025,2]
[328196642,1717044632070,-484.36,0.00026822,2]